bitfinex/quotes_SOLUSD_20250118
["timestamp","ask_amount","ask_price","bid_price","bid_amount"]
[1737190647279,20.00837357,239.92,239.83,20.00837357]
[1737190648176,20.00837357,239.88,239.82,0.03]
[1737190648684,20.00837357,239.86,239.82,0.03]
[1737190650571,20.00837357,239.88,239.82,0.03]
[1737190651088,20.00837357,239.9,239.82,0.03]
[1737190652084,20.00837357,239.9,239.85,0.97073964]
[1737190652276,0.78184383,239.93,239.85,0.97073964]
[1737190652480,24.17687357,239.89,239.85,0.97073964]
[1737190652865,20.00837357,239.89,239.85,0.97073964]
[1737190655592,20.00837357,239.87,239.85,0.97073964]
[1737190656191,20.00837357,239.86,239.85,0.97073964]
[1737190656489,20.00837357,239.88,239.85,0.97073964]
[1737190656704,20.00837357,239.89,239.85,0.97073964]
[1737190656988,20.00837357,239.9,239.85,0.97073964]
[1737190657182,20.00837357,239.91,239.85,0.97073964]
[1737190658094,20.00837357,239.93,239.85,20.97911321]
[1737190658673,20.78169412,239.92,239.85,0.97073964]
[1737190658990,20.00837357,239.88,239.85,0.97073964]
[1737190660076,20.00837357,239.9,239.85,0.97073964]
[1737190661179,20.00837357,239.97,239.88,20.00837357]
[1737190661690,20.00837357,239.91,239.85,0.97073964]
[1737190662068,20.00837357,239.93,239.85,0.97073964]
[1737190662985,0.78164181,239.92,239.85,0.97073964]
[1737190663186,20.00837357,239.91,239.85,0.97073964]
[1737190663382,20.00837357,239.95,239.86,20.00837357]
[1737190663969,20.00837357,239.87,239.85,0.97073964]
[1737190664992,24.17727357,239.87,239.82,0.00073964]
[1737190665180,20.00837357,239.85,239.82,0.00073964]
[1737190665890,4.1689,239.87,239.82,0.00073964]
[1737190665891,20.00837357,239.83,239.82,0.00073964]
[1737190666576,20.7903892,239.83,239.82,0.00073964]
[1737190666983,20.00837357,239.78,239.77,0.03]
[1737190674100,20.00837357,239.8,239.77,0.03]
[1737190674302,20.00837357,239.78,239.77,0.03]
[1737190674708,0.78197762,239.84,239.77,0.03]
[1737190675009,20.00837357,239.79,239.77,0.03]
[1737190676402,20.00837357,239.81,239.77,0.03]
[1737190680506,24.17837357,239.81,239.77,0.03]
[1737190680687,20.00837357,239.81,239.77,0.03]
[1737190681384,12.51698169,239.79,239.77,0.03]
[1737190682100,20.0,239.75,239.57,3.0017]
[1737190682310,0.78245884,239.74,239.57,15.51868169]
[1737190682487,12.51698169,239.67,239.59,12.51698169]
[1737190682683,12.51698169,239.62,239.57,3.0017]
[1737190682892,12.51698169,239.62,239.53,0.03]
[1737190683090,12.51698169,239.62,239.54,12.51698169]
[1737190683400,0.78260446,239.74,239.59,12.51698169]
[1737190683600,12.51698169,239.69,239.62,12.51698169]
[1737190683791,12.51698169,239.73,239.64,12.51698169]
[1737190683988,12.51698169,239.7,239.62,24.53068169]
[1737190684414,12.51698169,239.69,239.62,12.0137]
[1737190684686,12.51698169,239.7,239.62,24.53068169]
[1737190685100,12.51698169,239.7,239.63,12.51698169]
[1737190686210,0.78234032,239.78,239.67,12.51698169]
[1737190686511,12.51698169,239.76,239.67,12.51698169]
[1737190686717,12.51698169,239.74,239.67,12.51698169]
[1737190687598,12.51698169,239.76,239.67,12.51698169]
[1737190688189,12.51698169,239.74,239.67,12.51698169]
[1737190688915,12.51698169,239.74,239.65,12.51698169]
[1737190689616,12.51698169,239.72,239.64,3.0017]
[1737190690099,0.78232664,239.76,239.63,0.03]
[1737190690100,12.51698169,239.68,239.63,0.03]
[1737190690305,12.51698169,239.66,239.63,0.03]
[1737190690616,12.51698169,239.64,239.63,0.03]
[1737190691601,20.0,239.72,239.63,0.03]
[1737190691807,12.51698169,239.64,239.63,0.03]
[1737190692010,12.51698169,239.66,239.63,0.03]
[1737190692403,0.78250177,239.73,239.63,12.54698169]
[1737190692615,12.51698169,239.71,239.63,12.54698169]
[1737190692925,0.78250177,239.73,239.63,12.54698169]
[1737190693124,12.51698169,239.67,239.63,0.03]
[1737190693330,12.51698169,239.64,239.63,0.03]
[1737190693502,25.81672336,239.64,239.61,0.03]
[1737190693697,25.81672336,239.64,239.53,0.03]
[1737190693698,16.69018169,239.62,239.53,0.03]
[1737190694009,12.51698169,239.54,239.53,0.03]
[1737190695033,37.21476338,239.54,239.42,0.03]
[1737190695226,25.03396338,239.44,239.38,10.0]
[1737190695533,20.10832744,239.39,239.38,10.0]
[1737190695834,20.89188708,239.39,239.38,10.0]
[1737190696629,20.10832744,239.39,239.38,10.0]
[1737190697727,41.00019957,239.4,239.38,10.0]
[1737190698106,41.7881,239.39,239.25,0.063]
[1737190698307,0.78406876,239.38,239.06,1.65590738]
[1737190698529,20.10832744,239.24,239.16,20.10832744]
[1737190699108,20.10832744,239.26,239.18,20.10832744]
[1737190700335,20.10832744,239.28,239.2,20.10832744]
[1737190700505,20.10832744,239.3,239.22,20.10832744]
[1737190701608,20.10832744,239.3,239.24,20.10832744]
[1737190701810,20.10832744,239.32,239.24,20.10832744]
[1737190702510,20.10832744,239.31,239.24,20.10832744]
[1737190702728,20.10832744,239.3,239.23,20.10832744]
[1737190702936,20.10832744,239.31,239.23,20.10832744]
[1737190703234,20.10832744,239.31,239.24,20.10832744]
[1737190703927,20.10832744,239.32,239.24,20.10832744]
[1737190704237,20.10832744,239.36,239.28,20.10832744]
[1737190704423,20.10832744,239.33,239.25,20.10832744]
[1737190704630,20.10832744,239.34,239.27,20.10832744]
[1737190704829,20.10832744,239.34,239.26,20.10832744]
[1737190705329,20.10832744,239.32,239.25,20.10832744]
[1737190705906,20.10832744,239.29,239.22,20.10832744]
[1737190706640,20.10832744,239.3,239.23,20.10832744]
[1737190706924,4.96196647,239.34,239.26,20.10832744]
[1737190707137,20.10832744,239.32,239.25,20.10832744]
[1737190707302,20.10832744,239.32,239.24,20.10832744]
[1737190707511,20.89205428,239.31,239.24,20.10832744]
[1737190708333,20.10832744,239.3,239.23,20.10832744]
[1737190708533,0.78380183,239.29,239.23,20.10832744]
[1737190708724,20.10832744,239.25,239.18,20.10832744]
[1737190708933,24.28742744,239.29,239.22,20.10832744]
[1737190709238,20.10832744,239.27,239.19,20.10832744]
[1737190709437,0.78392617,239.26,239.2,20.10832744]
[1737190710023,20.89225361,239.26,239.18,20.10832744]
[1737190710224,25.07175361,239.26,239.18,20.10832744]
[1737190710544,20.10832744,239.24,239.17,20.10832744]
[1737190710840,0.78401405,239.23,239.17,20.10832744]
[1737190711027,0.78401405,239.23,239.14,20.10832744]
[1737190711232,20.10832744,239.22,239.13,20.13832744]
[1737190711414,0.78407659,239.21,239.13,20.13832744]
[1737190711841,20.10832744,239.2,239.13,20.13832744]
[1737190712228,20.10832744,239.2,239.13,0.03]
[1737190712229,0.7841031,239.19,239.13,0.03]
[1737190712620,0.78416019,239.21,239.15,20.10832744]
[1737190713017,0.78407628,239.23,239.17,20.10832744]
[1737190713224,20.89091858,239.26,239.17,20.10832744]
[1737190713429,0.78400985,239.25,239.17,20.10832744]
[1737190714138,20.10832744,239.23,239.13,0.03]
[1737190714337,20.10832744,239.21,239.13,0.03]
[1737190714536,0.7840951,239.2,239.13,0.03]
[1737190714734,20.10832744,239.23,239.14,20.10832744]
[1737190714934,0.78403713,239.23,239.16,20.10832744]
[1737190715142,20.89236457,239.23,239.13,20.13832744]
[1737190715318,20.10832744,239.21,239.13,20.13832744]
[1737190715841,20.10832744,239.28,239.2,20.10832744]
[1737190716034,20.10832744,239.28,239.18,20.10832744]
[1737190716240,20.10832744,239.26,239.18,20.10832744]
[1737190716416,20.10832744,239.26,239.16,20.10832744]
[1737190716616,20.10832744,239.24,239.16,20.10832744]
[1737190716848,20.10832744,239.2,239.13,0.03]
[1737190717041,20.10832744,239.22,239.13,0.03]
[1737190717539,0.78402042,239.21,239.13,0.03]
[1737190717738,20.89237328,239.22,239.13,0.03]
[1737190718342,20.10832744,239.2,239.13,0.03]
[1737190718651,20.89237328,239.22,239.13,0.03]
[1737190718825,20.10832744,239.22,239.13,0.03]
[1737190720051,20.89234887,239.22,239.13,0.03]
[1737190720229,20.10832744,239.2,239.13,0.03]
[1737190720934,20.10832744,239.22,239.14,20.10832744]
[1737190721123,20.10832744,239.24,239.14,20.10832744]
[1737190721321,10.3535,239.14,239.05,0.03]
[1737190721525,20.10832744,239.06,239.05,0.03]
[1737190722225,41.00136192,239.06,239.05,0.03]
[1737190722453,41.00136192,239.06,238.9,0.03]
[1737190722454,20.10832744,238.92,238.9,0.03]
[1737190723045,20.10832744,238.94,238.9,0.03]
[1737190723428,20.10832744,238.96,238.9,0.03]
[1737190723629,20.10832744,238.94,238.9,0.03]
[1737190725250,20.10832744,238.96,238.9,0.03]
[1737190725440,20.10832744,238.98,238.9,20.13832744]
[1737190725634,20.10832744,238.96,238.9,0.03]
[1737190726257,20.10832744,238.94,238.9,0.03]
[1737190726753,20.10832744,238.92,238.9,0.03]
[1737190727260,20.10832744,238.96,238.9,0.03]
[1737190727464,20.10832744,238.96,238.91,20.0]
[1737190728346,20.10832744,238.98,238.9,20.13832744]
[1737190728537,20.10832744,238.98,238.93,20.0]
[1737190728735,20.10832744,238.98,238.9,20.13832744]
[1737190729457,20.10832744,238.96,238.9,0.03]
[1737190729646,20.10832744,238.92,238.9,0.03]
[1737190730041,20.10832744,238.94,238.9,0.03]
[1737190730239,4.96833409,239.03,238.9,0.03]
[1737190730240,20.10832744,238.96,238.9,0.03]
[1737190730449,20.10832744,238.98,238.9,20.13832744]
[1737190730954,0.78473409,239.03,238.9,20.13832744]
[1737190731148,20.10832744,238.96,238.91,20.0]
[1737190731356,20.10832744,238.98,238.93,20.0]
[1737190731552,20.10832744,239.02,238.95,23.776884]
[1737190731854,20.10832744,239.02,238.94,20.10832744]
[1737190732059,20.10832744,239.02,238.95,20.0]
[1737190732260,4.1849,238.95,238.9,0.03]
[1737190732439,20.10832744,238.91,238.9,0.03]
[1737190732651,20.89335032,238.91,238.9,0.03]
[1737190733164,20.89335032,238.91,238.77,2.0571]
[1737190733361,20.10832744,238.87,238.77,2.0571]
[1737190734953,20.10832744,238.87,238.74,0.063]
[1737190735149,20.10832744,238.78,238.74,0.063]
[1737190735465,20.10832744,238.76,238.74,0.063]
[1737190736450,20.10832744,238.78,238.74,0.063]
[1737190736836,20.10832744,238.78,238.74,20.063]
[1737190737064,20.10832744,238.76,238.74,0.063]
[1737190739059,4.1869,238.84,238.74,0.063]
[1737190739367,20.10832744,238.75,238.74,0.063]
[1737190739862,20.10832744,238.8,238.74,0.063]
[1737190740068,20.10832744,238.75,238.74,0.063]
[1737190741576,20.0,238.72,238.68,0.063]
[1737190741750,20.10832744,238.69,238.68,0.063]
[1737190744880,0.78564074,238.79,238.69,20.0]
[1737190745049,20.10832744,238.74,238.69,20.0]
[1737190747365,0.78536191,238.95,238.76,20.0]
[1737190747568,20.10832744,238.9,238.8,20.10832744]
[1737190747869,20.10832744,238.89,238.84,23.776884]
[1737190748182,20.10832744,238.91,238.87,20.0]
[1737190748365,20.10832744,238.89,238.81,23.776884]
[1737190748682,20.10832744,238.87,238.79,5.46]
[1737190748884,20.10832744,238.85,238.79,5.46]
[1737190749066,20.10832744,238.85,238.83,23.776884]
[1737190749263,20.10832744,238.85,238.76,20.10832744]
[1737190749581,20.10832744,238.83,238.78,23.776884]
[1737190750168,20.10832744,238.81,238.72,20.10832744]
[1737190750355,20.10832744,238.77,238.7,2.1104]
[1737190750556,20.10832744,238.75,238.7,2.1104]
[1737190751409,20.10832744,238.75,238.68,0.063]
[1737190751570,8.2511,238.88,238.68,0.063]
[1737190751571,0.78541202,238.88,238.72,20.10832744]
[1737190751774,20.10832744,238.77,238.68,20.17132744]
[1737190752077,20.10832744,238.85,238.76,10.302]
[1737190752372,20.10832744,238.85,238.79,20.0]
[1737190752579,20.10832744,238.85,238.8,23.776884]
[1737190753080,20.10832744,238.87,238.8,23.776884]
[1737190756682,0.78494451,238.96,238.83,20.0]
[1737190756978,20.10832744,238.86,238.76,30.41032744]
[1737190757284,20.10832744,238.82,238.76,10.302]
[1737190757482,20.10832744,238.84,238.76,10.302]
[1737190757860,20.10832744,238.84,238.77,23.776884]
[1737190758176,20.10832744,238.84,238.76,10.302]
[1737190759479,20.10832744,238.84,238.77,23.776884]
[1737190759784,20.10832744,238.86,238.77,23.776884]
[1737190760278,20.10832744,238.86,238.78,20.10832744]
[1737190760481,20.10832744,238.86,238.76,30.41032744]
[1737190760686,20.10832744,238.86,238.77,23.776884]
[1737190760885,0.7851148,238.91,238.79,23.776884]
[1737190761073,20.10832744,238.87,238.78,20.10832744]
[1737190761273,20.10832744,238.85,238.76,30.44032744]
[1737190762582,20.10832744,238.85,238.77,23.776884]
[1737190762783,20.10832744,238.77,238.76,0.03]
[1737190763267,20.10832744,238.77,238.69,20.10832744]
[1737190763662,20.10832744,238.74,238.68,0.063]
[1737190764076,20.10832744,238.8,238.5,0.03]
[1737190764077,40.21665488,238.69,238.5,0.03]
[1737190764296,0.78593771,238.79,238.5,0.03]
[1737190764590,0.78593771,238.79,238.51,5.6]
[1737190764789,0.78548895,238.81,238.52,2.1229]
[1737190764963,20.0,238.77,238.52,2.1229]
[1737190765160,0.78564762,238.76,238.52,2.1229]
[1737190765389,20.10832744,238.71,238.61,20.10832744]
[1737190765597,0.78564762,238.76,238.61,20.10832744]
[1737190765781,20.10832744,238.68,238.58,20.10832744]
[1737190765979,20.10832744,238.66,238.56,20.10832744]
[1737190766882,0.78578228,238.65,238.52,20.10832744]
[1737190767189,20.10832744,238.6,238.51,20.10832744]
[1737190767592,20.78578228,238.65,238.5,0.03]
[1737190767763,20.10832744,238.6,238.51,20.10832744]
[1737190768081,20.10832744,238.58,238.5,0.03]
[1737190768302,20.10832744,238.55,238.5,0.03]
[1737190768601,20.10832744,238.6,238.51,20.10832744]
[1737190768768,20.10832744,238.6,238.52,23.776884]
[1737190768974,20.78578228,238.65,238.5,0.03]
[1737190768975,20.10832744,238.62,238.54,23.776884]
[1737190769392,20.10832744,238.62,238.53,20.10832744]
[1737190769879,20.10832744,238.66,238.57,20.10832744]
[1737190770082,20.10832744,238.66,238.5,0.03]
[1737190770083,4.1882,238.77,238.64,20.10832744]
[1737190770293,20.10832744,238.69,238.62,20.10832744]
[1737190770492,20.10832744,238.71,238.62,20.10832744]
[1737190770899,20.10832744,238.73,238.64,20.10832744]
[1737190771085,20.10832744,238.73,238.66,20.10832744]
[1737190771592,20.10832744,238.73,238.64,23.776884]
[1737190771593,20.10832744,238.75,238.68,20.10832744]
[1737190771989,20.10832744,238.75,238.69,23.776884]
[1737190772303,20.10832744,238.77,238.68,20.10832744]
[1737190773096,20.10832744,238.73,238.65,20.10832744]
[1737190773403,20.10832744,238.73,238.68,20.0]
[1737190773701,20.10832744,238.75,238.68,23.776884]
[1737190774086,20.10832744,238.75,238.62,0.03]
[1737190774285,20.10832744,238.7,238.62,20.13832744]
[1737190774493,20.10832744,238.72,238.64,20.10832744]
[1737190775200,20.10832744,238.72,238.65,23.776884]
[1737190777007,0.78560124,238.79,238.62,0.03]
[1737190777008,20.10832744,238.7,238.62,20.13832744]
[1737190777304,20.10832744,238.7,238.63,23.776884]
[1737190779516,20.10832744,238.72,238.65,23.776884]
[1737190780187,20.10832744,238.67,238.62,0.03]
[1737190780393,20.10832744,238.65,238.62,0.03]
[1737190780594,20.10832744,238.63,238.62,0.03]
[1737190781207,20.89445468,238.63,238.62,0.03]
[1737190782019,20.0,238.6,238.5,0.03]
[1737190782209,20.10832744,238.51,238.5,0.03]
[1737190782720,4.97758131,238.59,238.5,0.03]
[1737190782889,20.10832744,238.52,238.5,0.03]
[1737190784097,20.10832744,238.51,238.5,0.03]
[1737190785309,20.10832744,238.52,238.5,0.03]
[1737190787322,0.78617661,238.56,238.5,0.03]
[1737190787523,20.10832744,238.53,238.5,0.03]
[1737190788013,20.10832744,238.52,238.5,0.03]
[1737190790714,24.30082744,238.52,238.5,0.03]
[1737190790995,20.10832744,238.52,238.5,0.03]
[1737190791906,20.0,238.58,238.5,0.03]
[1737190791907,20.10832744,238.54,238.5,0.03]
[1737190792811,4.97786415,238.57,238.5,0.03]
[1737190792812,20.10832744,238.51,238.5,0.03]
[1737190793395,20.10832744,238.53,238.5,0.03]
[1737190794229,0.78626419,238.55,238.5,0.03]
[1737190794423,4.1918,238.56,238.5,0.03]
[1737190794424,25.08637526,238.56,238.5,0.03]
[1737190795316,20.9515,238.65,238.5,0.03]
[1737190795317,0.78622804,238.65,238.55,20.10832744]
[1737190795501,8.78905121,238.66,238.6,20.10832744]
[1737190795907,0.78587278,238.67,238.6,20.10832744]
[1737190796428,0.063,238.62,238.6,20.10832744]
[1737190796617,0.063,238.62,238.5,0.03]
[1737190796917,0.063,238.62,238.57,20.10832744]
[1737190797120,0.063,238.62,238.55,20.10832744]
[1737190797311,0.063,238.62,238.54,20.10832744]
[1737190797513,20.10832744,238.58,238.5,0.03]
[1737190797702,20.89450716,238.6,238.52,20.10832744]
[1737190797899,0.063,238.62,238.55,20.10832744]
[1737190798099,0.063,238.62,238.59,20.10832744]
[1737190800218,0.063,238.62,238.61,20.10832744]
[1737190800413,0.063,238.62,238.61,43.88521144]
[1737190800607,0.063,238.62,238.59,9.9757]
[1737190800816,0.063,238.62,238.61,20.10832744]
[1737190801325,0.063,238.62,238.61,181.18521144]
[1737190801903,0.063,238.62,238.61,161.076884]
[1737190802098,0.063,238.62,238.61,181.18521144]
[1737190802724,0.063,238.62,238.5,137.33]
[1737190802900,0.063,238.62,238.6,20.10832744]
[1737190803224,0.063,238.62,238.6,157.40832744]
[1737190803603,0.063,238.62,238.61,23.776884]
[1737190805417,0.063,238.62,238.6,137.3]
[1737190806226,0.063,238.62,238.61,23.776884]
[1737190807325,20.17132744,238.62,238.54,137.3]
[1737190807522,20.17132744,238.62,238.54,157.40832744]
[1737190807735,0.063,238.62,238.56,20.10832744]
[1737190807911,0.063,238.62,238.57,23.776884]
[1737190808828,0.063,238.62,238.61,23.776884]
[1737190809009,0.063,238.62,238.61,161.076884]
[1737190809930,20.17132744,238.62,238.56,0.03]
[1737190810131,20.10832744,238.59,238.56,0.03]
[1737190811533,20.10832744,238.61,238.56,0.03]
[1737190813149,0.063,238.62,238.57,23.776884]
[1737190813638,20.10832744,238.59,238.56,137.33]
[1737190814010,20.10832744,238.59,238.56,0.03]
[1737190814233,20.10832744,238.61,238.56,137.33]
[1737190814534,20.10832744,238.61,238.57,23.776884]
[1737190815133,0.063,238.62,238.57,23.776884]
[1737190815329,20.10832744,238.61,238.57,23.776884]
[1737190816836,20.10832744,238.61,238.57,161.076884]
[1737190817537,12.70193689,238.62,238.57,161.076884]
[1737190818331,12.63893689,238.6,238.57,161.076884]
[1737190818530,12.63893689,238.59,238.57,161.076884]
[1737190820125,12.63893689,238.61,238.57,161.076884]
[1737190820627,0.063,238.62,238.61,23.776884]
[1737190820927,0.063,238.62,238.61,161.076884]
[1737190826752,12.63893689,238.66,238.61,161.076884]
[1737190827254,12.63893689,238.69,238.68,20.0]
[1737190827649,12.63893689,238.72,238.69,23.776884]
[1737190828340,12.63893689,238.7,238.69,23.776884]
[1737190828847,12.63893689,238.72,238.69,23.776884]
[1737190829543,12.63893689,238.7,238.63,137.3]
[1737190829854,12.63893689,238.67,238.64,23.776884]
[1737190830031,12.63893689,238.69,238.64,23.776884]
[1737190830230,12.63893689,238.69,238.64,161.076884]
[1737190830438,16.82653689,238.8,238.64,161.076884]
[1737190830439,12.63893689,238.67,238.64,161.076884]
[1737190832163,4.97368242,238.77,238.58,137.3]
[1737190832164,12.63893689,238.65,238.58,137.3]
[1737190832342,12.63893689,238.62,238.58,137.3]
[1737190832660,12.63893689,238.62,238.57,137.33]
[1737190833571,12.63893689,238.64,238.57,137.33]
[1737190833864,12.63893689,238.64,238.58,23.776884]
[1737190834239,0.84870216,238.71,238.58,23.776884]
[1737190834440,20.0,238.58,238.57,0.03]
[1737190834647,20.0,238.56,238.42,24.30279524]
[1737190834955,12.63893689,238.51,238.42,24.30279524]
[1737190835163,12.63893689,238.51,238.39,137.3]
[1737190835462,12.63893689,238.51,238.42,20.0]
[1737190835962,12.63893689,238.54,238.45,149.93893689]
[1737190836165,8.6678,238.65,238.53,23.776884]
[1737190836465,8.6678,238.65,238.53,36.41582089]
[1737190836763,12.63893689,238.61,238.53,161.076884]
[1737190836963,12.63893689,238.62,238.56,23.776884]
[1737190837266,12.63893689,238.6,238.57,137.3]
[1737190837439,12.63893689,238.59,238.57,137.3]
[1737190837946,12.63893689,238.6,238.57,137.3]
[1737190838556,12.63893689,238.6,238.58,23.776884]
[1737190838765,12.63893689,238.66,238.58,12.63893689]
[1737190838953,12.63893689,238.63,238.57,137.3]
[1737190839152,12.63893689,238.62,238.55,23.776884]
[1737190839469,20.22270033,238.63,238.55,161.076884]
[1737190839764,20.22270033,238.63,238.58,20.0]
[1737190839960,8.7308,238.71,238.58,20.0]
[1737190840165,0.78575446,238.7,238.58,20.0]
[1737190840475,20.22270033,238.65,238.58,43.776884]
[1737190840644,20.22270033,238.65,238.59,23.776884]
[1737190841157,20.22270033,238.65,238.59,161.076884]
[1737190841354,20.22270033,238.65,238.59,137.3]
[1737190841553,20.22270033,238.61,238.5,157.55270033]
[1737190841850,20.22270033,238.59,238.52,23.776884]
[1737190842775,20.22270033,238.57,238.53,20.0]
[1737190842973,20.22270033,238.57,238.5,137.33]
[1737190843770,20.22270033,238.57,238.51,23.776884]
[1737190844570,20.22270033,238.58,238.51,161.076884]
[1737190844758,20.22270033,238.58,238.52,20.22270033]
[1737190845070,20.22270033,238.58,238.52,20.25270033]
[1737190845281,20.22270033,238.6,238.52,157.55270033]
[1737190845471,0.78589263,238.67,238.52,157.55270033]
[1737190845472,20.22270033,238.58,238.52,0.03]
[1737190845784,20.22270033,238.54,238.52,0.03]
[1737190846472,20.22270033,238.53,238.52,0.03]
[1737190848682,20.22270033,238.54,238.52,0.03]
[1737190849052,20.22270033,238.58,238.52,0.03]
[1737190849266,20.22270033,238.6,238.54,23.776884]
[1737190850270,20.22270033,238.62,238.54,23.776884]
[1737190850570,20.22270033,238.58,238.52,0.03]
[1737190850773,20.22270033,238.58,238.52,23.806884]
[1737190850966,20.22270033,238.6,238.52,0.03]
[1737190851288,20.22270033,238.6,238.52,23.806884]
[1737190851584,20.22270033,238.58,238.52,0.03]
[1737190852277,20.22270033,238.58,238.52,23.806884]
[1737190852455,20.22270033,238.6,238.52,23.806884]
[1737190853781,20.22270033,238.6,238.52,0.03]
[1737190854584,20.22270033,238.62,238.53,20.22270033]
[1737190854971,8.6115,238.69,238.59,20.22270033]
[1737190855179,0.063,238.69,238.67,20.22270033]
[1737190857390,0.063,238.69,238.68,23.776884]
[1737190858059,0.063,238.69,238.68,181.29958433]
[1737190858665,0.063,238.69,238.68,180.39958433]
[1737190860688,0.063,238.69,238.64,20.22270033]
[1737190861281,0.063,238.69,238.67,23.776884]
[1737190861475,0.063,238.69,238.64,20.22270033]
[1737190861670,20.22270033,238.68,238.6,20.22270033]
[1737190861993,20.22270033,238.64,238.56,20.22270033]
[1737190862183,20.22270033,238.62,238.54,162.50270033]
[1737190862371,0.063,238.69,238.62,23.776884]
[1737190862572,0.063,238.69,238.63,20.22270033]
[1737190862769,18.17450033,238.7,238.63,20.22270033]
[1737190862980,0.063,238.71,238.67,20.22270033]
[1737190863192,0.063,238.71,238.64,20.22270033]
[1737190863491,20.22270033,238.7,238.65,20.0]
[1737190863872,20.22270033,238.7,238.62,20.22270033]
[1737190864295,20.22270033,238.7,238.6,20.22270033]
[1737190864591,20.22270033,238.7,238.63,20.0]
[1737190864885,20.22270033,238.68,238.6,20.22270033]
[1737190865190,20.22270033,238.7,238.6,20.22270033]
[1737190865380,20.22270033,238.7,238.63,20.22270033]
[1737190865685,20.22270033,238.7,238.61,20.22270033]
[1737190865890,20.22270033,238.68,238.59,40.22270033]
[1737190866070,20.28570033,238.71,238.63,20.22270033]
[1737190866271,20.22270033,238.69,238.61,20.22270033]
[1737190866482,20.28570033,238.71,238.63,20.22270033]
[1737190866692,20.28570033,238.71,238.64,43.776884]
[1737190866993,0.063,238.71,238.64,43.776884]
[1737190867198,0.063,238.71,238.68,20.0]
[1737190867689,0.063,238.71,238.64,137.3]
[1737190868291,0.063,238.71,238.5,137.33]
[1737190868292,28.77120033,238.66,238.5,137.33]
[1737190868497,20.22270033,238.64,238.56,20.22270033]
[1737190868797,8.5485,238.66,238.63,0.03]
[1737190869097,28.77120033,238.66,238.63,0.03]
[1737190869297,20.22270033,238.66,238.63,0.03]
[1737190872170,20.22270033,238.68,238.63,0.03]
[1737190872488,20.22270033,238.68,238.64,20.0]
[1737190872793,0.08852282,238.65,238.63,0.03]
[1737190873090,0.08852282,238.65,238.64,20.0]
[1737190873595,0.08852282,238.65,238.63,157.55270033]
[1737190874199,0.08852282,238.65,238.64,161.076884]
[1737190876085,0.063,238.86,238.7,40.22270033]
[1737190876279,20.22270033,238.75,238.7,20.0]
[1737190876484,19.79650033,238.75,238.69,20.0]
[1737190877198,20.22270033,238.77,238.71,20.0]
[1737190877902,20.22270033,238.77,238.75,20.0]
[1737190878107,20.22270033,238.77,238.66,20.22270033]
[1737190878286,20.22270033,238.74,238.66,20.22270033]
[1737190878492,0.063,238.86,238.68,20.22270033]
[1737190878706,20.22270033,238.74,238.66,20.22270033]
[1737190878900,20.22270033,238.76,238.68,20.22270033]
[1737190879277,20.22270033,238.76,238.69,23.776884]
[1737190879493,20.22270033,238.78,238.71,20.0]
[1737190879703,8.7295,238.79,238.73,20.0]
[1737190879876,20.22270033,238.78,238.73,20.0]
[1737190880197,20.22270033,238.82,238.77,20.0]
[1737190880681,0.063,238.86,238.77,20.0]
[1737190880682,0.063,238.86,238.79,20.0]
[1737190880879,20.22270033,238.85,238.8,23.776884]
[1737190881383,0.063,238.86,238.84,23.776884]
[1737190881687,20.28570033,238.86,238.84,23.776884]
[1737190881880,0.063,238.86,238.82,43.776884]
[1737190882282,0.063,238.86,238.85,20.22270033]
[1737190883207,0.063,238.86,238.81,20.22270033]
[1737190883501,0.063,238.86,238.84,23.776884]
[1737190884197,0.063,238.86,238.85,23.776884]
[1737190884583,0.063,238.86,238.85,43.776884]
[1737190884781,0.063,238.86,238.85,23.776884]
[1737190885495,0.063,238.86,238.85,43.776884]
[1737190885680,0.063,238.86,238.8,20.22270033]
[1737190885879,20.28570033,238.86,238.78,20.22270033]
[1737190886083,20.22270033,238.84,238.75,2.1689]
[1737190886602,0.063,238.86,238.73,20.22270033]
[1737190886603,20.22270033,238.81,238.73,20.22270033]
[1737190886986,20.22270033,238.79,238.71,20.22270033]